[Event "Titled Tuesday Blitz December 13 Early 2022"]
[White "Zaichenko, Daria"]
[Black "Aizpurua, Patrick Emilio"]
[WhiteFideId "4197453"]
[BlackFideId "6600522"]
[WhiteElo "2039"]
[BlackElo "2378"]
[Result "0-1"]
[Round "03"]
[TimeControl "180+1"]
[Date "2022.12.14"]
[WhiteClock "0:00:01"]
[BlackClock "0:00:06"]

1. e4 {[%clk 0:02:55]}  c5 {[%clk 0:02:54]} 2. Nf3 {[%clk 0:02:55]}  e6 {[%clk 0:02:54]} 3. d4 {[%clk 0:02:55]}  cxd4 {[%clk 0:02:55]} 4. Nxd4 {[%clk 0:02:55]}  a6 {[%clk 0:02:55]} 5. Nc3 {[%clk 0:02:55]}  Qc7 {[%clk 0:02:55]} 6. Be2 {[%clk 0:02:54]}  Nc6 {[%clk 0:02:54]} 7. O-O {[%clk 0:02:49]}  Nf6 {[%clk 0:02:53]} 8. Be3 {[%clk 0:02:47]}  Be7 {[%clk 0:02:46]} 9. f4 {[%clk 0:02:45]}  d6 {[%clk 0:02:45]} 10. Kh1 {[%clk 0:02:41]}  Rb8 {[%clk 0:02:41]} 11. a4 {[%clk 0:02:40]}  O-O {[%clk 0:02:33]} 12. Qe1 {[%clk 0:02:36]}  Na5 {[%clk 0:02:25]} 13. Qg3 {[%clk 0:02:24]}  Nc4 {[%clk 0:02:24]} 14. Bc1 {[%clk 0:02:24]}  b6 {[%clk 0:02:08]} 15. b3 {[%clk 0:02:22]}  Na5 {[%clk 0:02:08]} 16. Bb2 {[%clk 0:02:22]}  Bb7 {[%clk 0:02:06]} 17. Bd3 {[%clk 0:02:05]}  Rfe8 {[%clk 0:01:38]} 18. e5 {[%clk 0:02:01]}  dxe5 {[%clk 0:01:26]} 19. fxe5 {[%clk 0:02:01]}  Bc5 {[%clk 0:00:53]} 20. Nce2 {[%clk 0:01:42]}  Nh5 {[%clk 0:00:45]} 21. Qh3 {[%clk 0:01:30]}  g6 {[%clk 0:00:35]} 22. Nf4 {[%clk 0:01:25]}  Nxf4 {[%clk 0:00:32]} 23. Rxf4 {[%clk 0:01:23]}  Qxe5 {[%clk 0:00:32]} 24. Rxf7 {[%clk 0:01:17]}  h5 {[%clk 0:00:16]} 25. Bxg6 {[%clk 0:00:55]}  Bxd4 {[%clk 0:00:15]} 26. Bxd4 {[%clk 0:00:45]}  Qxd4 {[%clk 0:00:16]} 27. Raf1 {[%clk 0:00:45]}  Qg4 {[%clk 0:00:16]} 28. Qxg4 {[%clk 0:00:33]}  hxg4 {[%clk 0:00:17]} 29. b4 {[%clk 0:00:22]}  Nc4 {[%clk 0:00:14]} 30. Rxb7 {[%clk 0:00:21]}  Rxb7 {[%clk 0:00:11]} 31. Bxe8 {[%clk 0:00:22]}  a5 {[%clk 0:00:11]} 32. Rf4 {[%clk 0:00:20]}  Ne5 {[%clk 0:00:08]} 33. Re4 {[%clk 0:00:19]}  Nd7 {[%clk 0:00:06]} 34. Rxg4+ {[%clk 0:00:13]}  Kf8 {[%clk 0:00:06]} 35. Bxd7 {[%clk 0:00:10]}  Rxd7 {[%clk 0:00:06]} 36. h3 {[%clk 0:00:10]}  Rd1+ {[%clk 0:00:06]} 37. Kh2 {[%clk 0:00:10]}  Rd2 {[%clk 0:00:06]} 38. bxa5 {[%clk 0:00:08]}  bxa5 {[%clk 0:00:07]} 39. Rg5 {[%clk 0:00:08]}  Rxc2 {[%clk 0:00:06]} 40. Rxa5 {[%clk 0:00:08]}  Ra2 {[%clk 0:00:07]} 41. Ra8+ {[%clk 0:00:07]}  Kf7 {[%clk 0:00:08]} 42. a5 {[%clk 0:00:07]}  Ra3 {[%clk 0:00:07]} 43. a6 {[%clk 0:00:07]}  e5 {[%clk 0:00:07]} 44. a7 {[%clk 0:00:06]}  Kg7 {[%clk 0:00:08]} 45. Kg1 {[%clk 0:00:06]}  Ra2 {[%clk 0:00:08]} 46. Kf1 {[%clk 0:00:06]}  e4 {[%clk 0:00:07]} 47. h4 {[%clk 0:00:06]}  e3 {[%clk 0:00:07]} 48. h5 {[%clk 0:00:04]}  Kh7 {[%clk 0:00:07]} 49. g4 {[%clk 0:00:03]}  Ra4 {[%clk 0:00:07]} 50. Ke2 {[%clk 0:00:01]}  Ra3 {[%clk 0:00:07]} 51. g5 {[%clk 0:00:01]}  Ra5 {[%clk 0:00:06]} 0-1


[Site "https://www.chess.com"]

[Event "Titled Tuesday Blitz December 13 Early 2022"]
[White "Zemlyanskii, Ivan"]
[Black "Ingebretsen, Jens E"]
[WhiteFideId "24249971"]
[BlackFideId "1522965"]
[WhiteElo "2107"]
[BlackElo "2213"]
[Result "1-0"]
[Round "03"]
[TimeControl "180+1"]
[Date "2022.12.14"]
[WhiteClock "0:02:05"]
[BlackClock "0:01:28"]

1. d4 {[%clk 0:03:00]}  e6 {[%clk 0:02:27]} 2. c4 {[%clk 0:02:57]}  b6 {[%clk 0:02:27]} 3. Nf3 {[%clk 0:02:39]}  Bb7 {[%clk 0:02:28]} 4. g3 {[%clk 0:02:40]}  f5 {[%clk 0:02:27]} 5. Bg2 {[%clk 0:02:40]}  Nf6 {[%clk 0:02:28]} 6. O-O {[%clk 0:02:40]}  Bd6 {[%clk 0:02:29]} 7. Nc3 {[%clk 0:02:37]}  O-O {[%clk 0:02:28]} 8. d5 {[%clk 0:02:37]}  Na6 {[%clk 0:02:27]} 9. Nd4 {[%clk 0:02:29]}  Qe7 {[%clk 0:02:22]} 10. Bg5 {[%clk 0:02:18]}  Nc5 {[%clk 0:02:12]} 11. b4 {[%clk 0:02:15]}  Nce4 {[%clk 0:02:07]} 12. Nxe4 {[%clk 0:02:13]}  fxe4 {[%clk 0:02:08]} 13. Bxe4 {[%clk 0:02:13]}  Bxb4 {[%clk 0:01:53]} 14. d6 {[%clk 0:02:13]}  Qxd6 {[%clk 0:01:32]} 15. Bxb7 {[%clk 0:02:11]}  Rab8 {[%clk 0:01:33]} 16. Bg2 {[%clk 0:02:11]}  Bc3 {[%clk 0:01:34]} 17. Nb5 {[%clk 0:02:12]}  Qxd1 {[%clk 0:01:31]} 18. Raxd1 {[%clk 0:02:12]}  Be5 {[%clk 0:01:31]} 19. Bxf6 {[%clk 0:02:07]}  Rxf6 {[%clk 0:01:28]} 20. Rxd7 {[%clk 0:02:05]} 1-0


[Site "https://www.chess.com"]

[Event "Titled Tuesday Blitz December 13 Early 2022"]
[White "Abasov, Nijat"]
[Black "Fier, Alexandr"]
[WhiteFideId "13402960"]
[BlackFideId "2107139"]
[WhiteElo "2546"]
[BlackElo "2612"]
[Result "0-1"]
[Round "04"]
[TimeControl "180+1"]
[Date "2022.12.13"]
[WhiteClock "0:00:05"]
[BlackClock "0:00:55"]

1. d4 {[%clk 0:03:00]}  Nf6 {[%clk 0:02:58]} 2. Nf3 {[%clk 0:03:01]}  c5 {[%clk 0:02:57]} 3. c3 {[%clk 0:02:58]}  d5 {[%clk 0:02:55]} 4. Bf4 {[%clk 0:02:58]}  Nc6 {[%clk 0:02:55]} 5. e3 {[%clk 0:02:55]}  Qb6 {[%clk 0:02:54]} 6. Qb3 {[%clk 0:02:40]}  c4 {[%clk 0:02:54]} 7. Qc2 {[%clk 0:02:41]}  Bf5 {[%clk 0:02:55]} 8. Qc1 {[%clk 0:02:42]}  e6 {[%clk 0:02:55]} 9. Nbd2 {[%clk 0:02:41]}  Nh5 {[%clk 0:02:54]} 10. Bg3 {[%clk 0:02:27]}  Nxg3 {[%clk 0:02:54]} 11. hxg3 {[%clk 0:02:28]}  h6 {[%clk 0:02:53]} 12. Be2 {[%clk 0:02:21]}  Be7 {[%clk 0:02:52]} 13. b3 {[%clk 0:02:21]}  cxb3 {[%clk 0:02:50]} 14. axb3 {[%clk 0:02:22]}  Rc8 {[%clk 0:02:51]} 15. O-O {[%clk 0:02:17]}  O-O {[%clk 0:02:51]} 16. Qb2 {[%clk 0:02:10]}  Bf6 {[%clk 0:02:49]} 17. Rfc1 {[%clk 0:02:05]}  Bg6 {[%clk 0:02:44]} 18. c4 {[%clk 0:01:58]}  dxc4 {[%clk 0:02:42]} 19. Nxc4 {[%clk 0:01:59]}  Qd8 {[%clk 0:02:41]} 20. b4 {[%clk 0:01:58]}  a6 {[%clk 0:02:28]} 21. b5 {[%clk 0:01:57]}  axb5 {[%clk 0:02:29]} 22. Qxb5 {[%clk 0:01:58]}  Rc7 {[%clk 0:02:29]} 23. Nce5 {[%clk 0:01:42]}  Bxe5 {[%clk 0:02:19]} 24. Nxe5 {[%clk 0:01:43]}  Nxe5 {[%clk 0:02:19]} 25. Qxe5 {[%clk 0:01:42]}  Rxc1+ {[%clk 0:02:13]} 26. Rxc1 {[%clk 0:01:43]}  Qb6 {[%clk 0:02:03]} 27. Bf3 {[%clk 0:01:20]}  Qb2 {[%clk 0:02:03]} 28. Qc7 {[%clk 0:00:51]}  b5 {[%clk 0:01:58]} 29. d5 {[%clk 0:00:51]}  exd5 {[%clk 0:01:57]} 30. Bxd5 {[%clk 0:00:52]}  b4 {[%clk 0:01:56]} 31. Rc6 {[%clk 0:00:43]}  b3 {[%clk 0:01:51]} 32. Rxg6 {[%clk 0:00:08]}  Qb1+ {[%clk 0:01:51]} 33. Kh2 {[%clk 0:00:09]}  Qxg6 {[%clk 0:01:52]} 34. Bxb3 {[%clk 0:00:10]}  Qf6 {[%clk 0:01:50]} 35. Qf4 {[%clk 0:00:09]}  Qxf4 {[%clk 0:01:40]} 36. gxf4 {[%clk 0:00:10]}  Rb8 {[%clk 0:01:40]} 37. Bd5 {[%clk 0:00:10]}  Kf8 {[%clk 0:01:41]} 38. Kg3 {[%clk 0:00:11]}  Ke7 {[%clk 0:01:42]} 39. Kf3 {[%clk 0:00:11]}  f6 {[%clk 0:01:41]} 40. g4 {[%clk 0:00:11]}  Kd6 {[%clk 0:01:41]} 41. Be4 {[%clk 0:00:12]}  Rb2 {[%clk 0:01:41]} 42. Bg6 {[%clk 0:00:12]}  Ra2 {[%clk 0:01:36]} 43. Bf7 {[%clk 0:00:12]}  Ra1 {[%clk 0:01:36]} 44. Ke4 {[%clk 0:00:12]}  Ke7 {[%clk 0:01:34]} 45. Bg6 {[%clk 0:00:12]}  Rg1 {[%clk 0:01:31]} 46. f3 {[%clk 0:00:06]}  Rg3 {[%clk 0:01:31]} 47. f5 {[%clk 0:00:04]}  Rg1 {[%clk 0:01:30]} 48. Kf4 {[%clk 0:00:04]}  Kd6 {[%clk 0:01:30]} 49. Bf7 {[%clk 0:00:04]}  Kc5 {[%clk 0:01:29]} 50. Be6 {[%clk 0:00:04]}  Ra1 {[%clk 0:01:27]} 51. e4 {[%clk 0:00:04]}  Kd4 {[%clk 0:01:27]} 52. Bd7 {[%clk 0:00:05]}  Ra5 {[%clk 0:01:25]} 53. Be6 {[%clk 0:00:05]}  Kd3 {[%clk 0:01:25]} 54. Bd7 {[%clk 0:00:05]}  Ke2 {[%clk 0:01:25]} 55. Bc6 {[%clk 0:00:05]}  Kf2 {[%clk 0:01:24]} 56. Bd5 {[%clk 0:00:05]}  Rc5 {[%clk 0:01:15]} 57. Bb7 {[%clk 0:00:04]}  Kg2 {[%clk 0:01:06]} 58. Ba8 {[%clk 0:00:03]}  Kh3 {[%clk 0:01:07]} 59. Bb7 {[%clk 0:00:03]}  Kh4 {[%clk 0:01:07]} 60. Ba8 {[%clk 0:00:03]}  h5 {[%clk 0:01:02]} 61. gxh5 {[%clk 0:00:03]}  Kxh5 {[%clk 0:01:03]} 62. Bb7 {[%clk 0:00:04]}  Kh4 {[%clk 0:01:03]} 63. Ba8 {[%clk 0:00:04]}  Kh3 {[%clk 0:01:04]} 64. Bb7 {[%clk 0:00:05]}  Kg2 {[%clk 0:01:04]} 65. Ba8 {[%clk 0:00:05]}  Kf2 {[%clk 0:01:05]} 66. Bb7 {[%clk 0:00:06]}  Ra5 {[%clk 0:01:05]} 67. Bc6 {[%clk 0:00:05]}  Ra6 {[%clk 0:01:05]} 68. Bb7 {[%clk 0:00:06]}  Rb6 {[%clk 0:01:05]} 69. Ba8 {[%clk 0:00:06]}  Rb5 {[%clk 0:01:03]} 70. Bc6 {[%clk 0:00:06]}  Rb4 {[%clk 0:01:03]} 71. Ba8 {[%clk 0:00:06]}  Ke1 {[%clk 0:00:58]} 72. Bc6 {[%clk 0:00:06]}  Kd2 {[%clk 0:00:58]} 73. Ba8 {[%clk 0:00:06]}  Kc3 {[%clk 0:00:59]} 74. Kg4 {[%clk 0:00:05]}  Rb1 {[%clk 0:00:58]} 75. Kf4 {[%clk 0:00:06]}  Kd4 {[%clk 0:00:58]} 76. Bc6 {[%clk 0:00:05]}  Rg1 {[%clk 0:00:58]} 77. Ba8 {[%clk 0:00:06]}  Rh1 {[%clk 0:00:59]} 78. Bd5 {[%clk 0:00:05]}  Rh4+ {[%clk 0:00:59]} 79. Kg3 {[%clk 0:00:06]}  Rh1 {[%clk 0:01:00]} 80. Kf4 {[%clk 0:00:07]}  Rh2 {[%clk 0:01:00]} 81. Ba8 {[%clk 0:00:07]}  Rh4+ {[%clk 0:01:01]} 82. Kg3 {[%clk 0:00:07]}  Rh8 {[%clk 0:01:01]} 83. Bd5 {[%clk 0:00:07]}  Ke3 {[%clk 0:01:02]} 84. Kg4 {[%clk 0:00:07]}  Rh1 {[%clk 0:01:02]} 85. Bb7 {[%clk 0:00:07]}  Rg1+ {[%clk 0:01:02]} 86. Kh5 {[%clk 0:00:08]}  Kf4 {[%clk 0:00:59]} 87. Bd5 {[%clk 0:00:02]}  Rg5+ {[%clk 0:00:59]} 88. Kh4 {[%clk 0:00:03]}  Rg3 {[%clk 0:01:00]} 89. Kh5 {[%clk 0:00:04]}  Rxf3 {[%clk 0:00:58]} 90. Kg6 {[%clk 0:00:05]}  Rg3+ {[%clk 0:00:59]} 91. Kf7 {[%clk 0:00:05]}  Ke5 {[%clk 0:00:59]} 92. Bc6 {[%clk 0:00:06]}  Rc3 {[%clk 0:00:58]} 93. Bd5 {[%clk 0:00:06]}  Rc7+ {[%clk 0:00:58]} 94. Kg6 {[%clk 0:00:07]}  Re7 {[%clk 0:00:56]} 95. Ba8 {[%clk 0:00:07]}  Kf4 {[%clk 0:00:56]} 96. Bd5 {[%clk 0:00:05]}  Rxe4 {[%clk 0:00:56]} 97. Kxg7 {[%clk 0:00:06]}  Re5 {[%clk 0:00:55]} 98. Be6 {[%clk 0:00:06]}  Kg5 {[%clk 0:00:55]} 99. Kf7 {[%clk 0:00:05]}  Rxf5 {[%clk 0:00:55]} 0-1


[Site "https://www.chess.com"]

[Event "Titled Tuesday Blitz December 13 Early 2022"]
[White "Alexakis, Dimitris"]
[Black "Navara, David"]
[WhiteFideId "4277023"]
[BlackFideId "309095"]
[WhiteElo "2470"]
[BlackElo "2676"]
[Result "0-1"]
[Round "04"]
[TimeControl "180+1"]
[Date "2022.12.13"]
[WhiteClock "0:00:05"]
[BlackClock "0:00:15"]

1. e4 {[%clk 0:02:56]}  c6 {[%clk 0:03:00]} 2. d4 {[%clk 0:02:55]}  d5 {[%clk 0:03:00]} 3. Nd2 {[%clk 0:02:56]}  dxe4 {[%clk 0:03:00]} 4. Nxe4 {[%clk 0:02:57]}  Nf6 {[%clk 0:03:00]} 5. Nxf6+ {[%clk 0:02:57]}  exf6 {[%clk 0:03:01]} 6. c3 {[%clk 0:02:57]}  Bd6 {[%clk 0:03:00]} 7. Bd3 {[%clk 0:02:58]}  O-O {[%clk 0:03:01]} 8. Ne2 {[%clk 0:02:59]}  Re8 {[%clk 0:02:58]} 9. Qc2 {[%clk 0:02:59]}  h5 {[%clk 0:02:58]} 10. O-O {[%clk 0:02:59]}  h4 {[%clk 0:02:46]} 11. h3 {[%clk 0:02:59]}  Nd7 {[%clk 0:02:44]} 12. Bf4 {[%clk 0:02:57]}  Nf8 {[%clk 0:02:37]} 13. Qd2 {[%clk 0:02:56]}  g6 {[%clk 0:02:26]} 14. Rfe1 {[%clk 0:02:54]}  Ne6 {[%clk 0:02:22]} 15. Bxd6 {[%clk 0:02:50]}  Qxd6 {[%clk 0:02:23]} 16. Qh6 {[%clk 0:02:48]}  Bd7 {[%clk 0:02:00]} 17. Qxh4 {[%clk 0:02:32]}  Kg7 {[%clk 0:02:01]} 18. Qg3 {[%clk 0:02:33]}  Qxg3 {[%clk 0:01:58]} 19. Nxg3 {[%clk 0:02:32]}  Nf4 {[%clk 0:01:58]} 20. Bf1 {[%clk 0:02:29]}  f5 {[%clk 0:01:56]} 21. Rad1 {[%clk 0:02:23]}  Rxe1 {[%clk 0:01:43]} 22. Rxe1 {[%clk 0:02:23]}  Be6 {[%clk 0:01:44]} 23. a3 {[%clk 0:02:18]}  Rd8 {[%clk 0:01:39]} 24. Re5 {[%clk 0:02:06]}  b6 {[%clk 0:01:18]} 25. f3 {[%clk 0:01:37]}  Kf6 {[%clk 0:01:17]} 26. Re1 {[%clk 0:01:09]}  Bb3 {[%clk 0:01:14]} 27. Ba6 {[%clk 0:00:32]}  c5 {[%clk 0:01:11]} 28. Ne2 {[%clk 0:00:29]}  Ne6 {[%clk 0:01:06]} 29. Rc1 {[%clk 0:00:23]}  cxd4 {[%clk 0:01:02]} 30. cxd4 {[%clk 0:00:22]}  Nxd4 {[%clk 0:01:03]} 31. Nxd4 {[%clk 0:00:17]}  Rxd4 {[%clk 0:01:04]} 32. Rc3 {[%clk 0:00:17]}  Rd1+ {[%clk 0:00:59]} 33. Kh2 {[%clk 0:00:17]}  Bd5 {[%clk 0:00:59]} 34. Rc7 {[%clk 0:00:17]}  Rd2 {[%clk 0:01:00]} 35. Kg3 {[%clk 0:00:15]}  Rxb2 {[%clk 0:00:52]} 36. Rxa7 {[%clk 0:00:13]}  g5 {[%clk 0:00:50]} 37. h4 {[%clk 0:00:11]}  f4+ {[%clk 0:00:49]} 38. Kh3 {[%clk 0:00:11]}  Be6+ {[%clk 0:00:46]} 39. Kh2 {[%clk 0:00:12]}  gxh4 {[%clk 0:00:47]} 40. Kg1 {[%clk 0:00:11]}  h3 {[%clk 0:00:30]} 41. gxh3 {[%clk 0:00:11]}  Kg5 {[%clk 0:00:31]} 42. Ra8 {[%clk 0:00:06]}  Rb3 {[%clk 0:00:30]} 43. Bb7 {[%clk 0:00:06]}  Kh4 {[%clk 0:00:27]} 44. Rh8+ {[%clk 0:00:06]}  Kg3 {[%clk 0:00:28]} 45. Rg8+ {[%clk 0:00:07]}  Kh4 {[%clk 0:00:28]} 46. a4 {[%clk 0:00:07]}  Rb1+ {[%clk 0:00:25]} 47. Kf2 {[%clk 0:00:07]}  Rb2+ {[%clk 0:00:25]} 48. Ke1 {[%clk 0:00:08]}  Kxh3 {[%clk 0:00:23]} 49. Kd1 {[%clk 0:00:06]}  Rg2 {[%clk 0:00:22]} 50. Rh8+ {[%clk 0:00:04]}  Kg3 {[%clk 0:00:22]} 51. Ke1 {[%clk 0:00:05]}  Rg1+ {[%clk 0:00:22]} 52. Ke2 {[%clk 0:00:05]}  Bc4+ {[%clk 0:00:21]} 53. Kd2 {[%clk 0:00:06]}  Ra1 {[%clk 0:00:20]} 54. Kc3 {[%clk 0:00:06]}  Be2 {[%clk 0:00:19]} 55. Rg8+ {[%clk 0:00:06]}  Kf2 {[%clk 0:00:19]} 56. Rg4 {[%clk 0:00:06]}  Ke3 {[%clk 0:00:18]} 57. Kb3 {[%clk 0:00:06]}  Bxf3 {[%clk 0:00:18]} 58. Bxf3 {[%clk 0:00:06]}  Kxf3 {[%clk 0:00:19]} 59. Rg7 {[%clk 0:00:06]}  Rd1 {[%clk 0:00:17]} 60. Rxf7 {[%clk 0:00:05]}  Rd6 {[%clk 0:00:17]} 61. Kb4 {[%clk 0:00:04]}  Ke4 {[%clk 0:00:16]} 62. Re7+ {[%clk 0:00:04]}  Kf5 {[%clk 0:00:16]} 63. a5 {[%clk 0:00:04]}  bxa5+ {[%clk 0:00:16]} 64. Kc5 {[%clk 0:00:05]}  Rf6 {[%clk 0:00:15]} 0-1


[Site "https://www.chess.com"]

[Event "Titled Tuesday Blitz December 13 Early 2022"]
[White "Alice, Mateus Felizardo Viageiro"]
[Black "Lopez Idarraga, Daniel Eduardo"]
[WhiteFideId "14800047"]
[BlackFideId "4405501"]
[WhiteElo "2189"]
[BlackElo "2064"]
[Result "1-0"]
[Round "04"]
[TimeControl "180+1"]
[Date "2022.12.14"]
[WhiteClock "0:01:45"]
[BlackClock "0:01:27"]

1. e4 {[%clk 0:03:00]}  c5 {[%clk 0:02:59]} 2. Nf3 {[%clk 0:03:00]}  Nc6 {[%clk 0:02:59]} 3. Bb5 {[%clk 0:02:59]}  e6 {[%clk 0:02:59]} 4. O-O {[%clk 0:02:58]}  Nge7 {[%clk 0:02:59]} 5. c3 {[%clk 0:02:59]}  a6 {[%clk 0:03:00]} 6. Ba4 {[%clk 0:02:58]}  b5 {[%clk 0:03:01]} 7. Bc2 {[%clk 0:02:57]}  d6 {[%clk 0:03:01]} 8. a4 {[%clk 0:02:58]}  Bb7 {[%clk 0:03:01]} 9. d4 {[%clk 0:02:58]}  Ng6 {[%clk 0:02:59]} 10. Re1 {[%clk 0:02:58]}  Be7 {[%clk 0:02:58]} 11. Nbd2 {[%clk 0:02:58]}  O-O {[%clk 0:02:58]} 12. Nf1 {[%clk 0:02:57]}  b4 {[%clk 0:02:58]} 13. Ng3 {[%clk 0:02:56]}  a5 {[%clk 0:02:53]} 14. Be3 {[%clk 0:02:56]}  Rc8 {[%clk 0:02:34]} 15. Qd2 {[%clk 0:02:52]}  Qb6 {[%clk 0:02:32]} 16. Bd3 {[%clk 0:02:47]}  Rfd8 {[%clk 0:02:25]} 17. d5 {[%clk 0:02:45]}  exd5 {[%clk 0:02:23]} 18. exd5 {[%clk 0:02:45]}  Nce5 {[%clk 0:02:24]} 19. Nxe5 {[%clk 0:02:44]}  Nxe5 {[%clk 0:02:25]} 20. Be2 {[%clk 0:02:41]}  Bf6 {[%clk 0:02:21]} 21. Ne4 {[%clk 0:02:39]}  Be7 {[%clk 0:02:17]} 22. f4 {[%clk 0:02:37]}  Nd7 {[%clk 0:02:16]} 23. c4 {[%clk 0:02:28]}  Nf6 {[%clk 0:02:15]} 24. Bd3 {[%clk 0:02:22]}  Nxe4 {[%clk 0:02:15]} 25. Bxe4 {[%clk 0:02:23]}  Bf6 {[%clk 0:02:15]} 26. g4 {[%clk 0:02:16]}  Re8 {[%clk 0:02:14]} 27. Bf5 {[%clk 0:02:16]}  Rcd8 {[%clk 0:01:43]} 28. g5 {[%clk 0:02:14]}  Rxe3 {[%clk 0:01:42]} 29. gxf6 {[%clk 0:02:10]}  Ree8 {[%clk 0:01:36]} 30. Bxh7+ {[%clk 0:01:46]}  Kxh7 {[%clk 0:01:35]} 31. Qd3+ {[%clk 0:01:46]}  Kg8 {[%clk 0:01:27]} 32. Qg3 {[%clk 0:01:45]} 1-0


[Site "https://www.chess.com"]

[Event "Titled Tuesday Blitz December 13 Early 2022"]
[White "Antonio, Jorge Carlos"]
[Black "Mihailidis, Anastasios"]
[WhiteFideId "113190"]
[BlackFideId "4205588"]
[WhiteElo "2247"]
[BlackElo "2312"]
[Result "1-0"]
[Round "04"]
[TimeControl "180+1"]
[Date "2022.12.14"]
[WhiteClock "0:00:27"]
[BlackClock "0:00:14"]

1. d4 {[%clk 0:03:00]}  d5 {[%clk 0:02:57]} 2. Nf3 {[%clk 0:03:01]}  e6 {[%clk 0:02:57]} 3. Bf4 {[%clk 0:02:56]}  Bd6 {[%clk 0:02:57]} 4. Ne5 {[%clk 0:02:50]}  Nf6 {[%clk 0:02:55]} 5. e3 {[%clk 0:02:46]}  O-O {[%clk 0:02:55]} 6. c3 {[%clk 0:02:46]}  c5 {[%clk 0:02:53]} 7. Bd3 {[%clk 0:02:42]}  Nc6 {[%clk 0:02:53]} 8. Nd2 {[%clk 0:02:38]}  Qc7 {[%clk 0:02:50]} 9. Ndf3 {[%clk 0:02:34]}  Ne7 {[%clk 0:02:42]} 10. O-O {[%clk 0:02:26]}  b6 {[%clk 0:02:41]} 11. h4 {[%clk 0:02:21]}  Bb7 {[%clk 0:02:35]} 12. h5 {[%clk 0:02:19]}  Nd7 {[%clk 0:02:28]} 13. Nxd7 {[%clk 0:02:14]}  Qxd7 {[%clk 0:02:27]} 14. Ne5 {[%clk 0:02:12]}  Bxe5 {[%clk 0:02:27]} 15. Bxe5 {[%clk 0:02:11]}  f6 {[%clk 0:02:27]} 16. Bg3 {[%clk 0:02:05]}  Nc6 {[%clk 0:02:27]} 17. Qg4 {[%clk 0:02:00]}  Kh8 {[%clk 0:02:15]} 18. Rad1 {[%clk 0:01:56]}  Rad8 {[%clk 0:02:12]} 19. Bh4 {[%clk 0:01:51]}  Rde8 {[%clk 0:02:03]} 20. Rfe1 {[%clk 0:01:51]}  Nd8 {[%clk 0:01:57]} 21. Bb1 {[%clk 0:01:49]}  Nf7 {[%clk 0:01:54]} 22. dxc5 {[%clk 0:01:42]}  bxc5 {[%clk 0:01:54]} 23. e4 {[%clk 0:01:40]}  Qc8 {[%clk 0:01:46]} 24. exd5 {[%clk 0:01:34]}  exd5 {[%clk 0:01:43]} 25. Qxc8 {[%clk 0:01:28]}  Rxc8 {[%clk 0:01:42]} 26. Re7 {[%clk 0:01:23]}  Bc6 {[%clk 0:01:33]} 27. Rxa7 {[%clk 0:01:15]}  Ne5 {[%clk 0:01:33]} 28. f4 {[%clk 0:01:08]}  Nc4 {[%clk 0:01:30]} 29. h6 {[%clk 0:01:03]}  g6 {[%clk 0:01:23]} 30. Re1 {[%clk 0:00:57]}  Rce8 {[%clk 0:01:22]} 31. Rxe8 {[%clk 0:00:56]}  Bxe8 {[%clk 0:01:23]} 32. b3 {[%clk 0:00:51]}  Nd2 {[%clk 0:01:05]} 33. Bc2 {[%clk 0:00:46]}  Ne4 {[%clk 0:01:04]} 34. Bxe4 {[%clk 0:00:42]}  dxe4 {[%clk 0:01:04]} 35. Bf2 {[%clk 0:00:36]}  c4 {[%clk 0:00:50]} 36. b4 {[%clk 0:00:34]}  Bc6 {[%clk 0:00:36]} 37. Bd4 {[%clk 0:00:32]}  Kg8 {[%clk 0:00:33]} 38. g3 {[%clk 0:00:32]}  Re8 {[%clk 0:00:32]} 39. Kf2 {[%clk 0:00:32]}  g5 {[%clk 0:00:20]} 40. Ke3 {[%clk 0:00:30]}  gxf4+ {[%clk 0:00:19]} 41. gxf4 {[%clk 0:00:30]}  f5 {[%clk 0:00:19]} 42. Rg7+ {[%clk 0:00:29]}  Kf8 {[%clk 0:00:18]} 43. Rxh7 {[%clk 0:00:29]}  Ra8 {[%clk 0:00:17]} 44. Rc7 {[%clk 0:00:28]}  Be8 {[%clk 0:00:14]} 45. h7 {[%clk 0:00:27]} 1-0


[Site "https://www.chess.com"]